bitfinex-derivatives/quotes_SOLF0:USTF0_20250630
["timestamp","ask_amount","ask_price","bid_price","bid_amount"]
[1751277286656,3.1256176,150.12,150.1,4.5122]
[1751277286849,3.1256176,150.12,150.1,8.903]
[1751277288160,3.1256176,150.12,150.11,6.6602]
[1751277288763,9.7847176,150.14,150.11,6.6602]
[1751277290964,3.1256176,150.16,150.1,2.2427]
[1751277291662,3.1256176,150.16,150.13,6.659]
[1751277291663,9.7838176,150.16,150.13,6.659]
[1751277293361,6.6585,150.15,150.13,6.659]
[1751277307075,1.99901876,150.12,150.11,6.16707884]
[1751277307671,1.99901876,150.12,150.1,15.07017884]
[1751277307873,3.12454585,150.12,150.1,6.16707884]
[1751277308573,6.6602,150.11,150.1,6.16707884]
[1751277310372,6.6602,150.11,150.09,6.16707884]
[1751277310673,3.12454585,150.1,150.09,12.82817884]
[1751277313980,9.78514585,150.1,150.09,6.16707884]
[1751277314180,34.62,150.13,150.08,6.16707884]
[1751277314383,140.62464585,150.12,150.09,6.6608]
[1751277314972,6.6603,150.11,150.08,12.82847884]
[1751277315277,6.6603,150.11,150.08,6.16707884]
[1751277315976,6.6603,150.11,150.09,6.6608]
[1751277316479,6.6603,150.11,150.08,12.82837884]
[1751277316679,6.6606,150.1,150.08,12.82837884]
[1751277317376,3.12454585,150.1,150.07,6.16707884]
[1751277317578,3.12454585,150.1,150.06,2.1576]
[1751277317579,130.84,150.12,150.06,8.32467884]
[1751277317772,3.12454585,150.09,150.06,8.32467884]
[1751277317968,3.12454585,150.09,150.06,6.16707884]
[1751277318173,3.12454585,150.09,150.05,6.16707884]
[1751277318572,6.6616,150.08,150.05,6.16707884]
[1751277319873,9.78614585,150.08,150.05,12.82967884]
[1751277320379,6.662,150.07,150.05,12.82967884]
[1751277320568,3.12454585,150.08,150.05,6.16707884]
[1751277320774,3.12454585,150.08,150.04,8.9797]
[1751277320775,3.12454585,150.06,150.04,8.48347884]
[1751277321279,3.12454585,150.06,150.04,2.3164]
[1751277321877,3.12454585,150.06,150.04,8.9795]
[1751277322782,3.12454585,150.07,150.05,6.6628]
[1751277327880,2.00107837,150.06,150.05,6.6628]
[1751277333786,2.00107837,150.07,150.04,4.31747837]
[1751277334485,2.00107837,150.07,150.06,6.6624]
[1751277334885,41.1413,150.09,150.04,2.3164]
[1751277335084,2.00107837,150.07,150.04,2.3164]
[1751277335683,2.00107837,150.07,150.06,6.6624]
[1751277337486,8.66297837,150.07,150.04,2.3164]
[1751277337689,2.00107837,150.05,150.03,8.41397884]
[1751277337892,2.00107837,150.04,150.03,8.41397884]
[1751277339192,2.00107837,150.04,150.03,2.2469]
[1751277339391,2.00107837,150.04,150.03,8.41397884]
[1751277339593,2.00107837,150.04,150.03,8.9106]
[1751277340991,2.00107837,150.05,150.04,6.6632]
[1751277343004,8.66397837,150.05,150.03,8.9104]
[1751277343200,2.00107837,150.04,150.03,8.9104]
[1751277343698,6.6629,150.05,150.03,8.9104]
[1751277343903,2.00107837,150.04,150.03,8.9104]
[1751277344692,34.48,150.09,150.04,6.6632]
[1751277344998,2.00107837,150.05,150.04,6.6632]
[1751277345700,6.6619,150.08,150.05,6.6628]
[1751277345895,2.00107837,150.06,150.05,6.6628]
[1751277348199,2.00107837,150.07,150.06,6.6624]
[1751277348397,2.00107837,150.07,150.03,10.41505721]
[1751277349495,2.00107837,150.07,150.06,6.6624]
[1751277350100,34.36,150.09,150.07,6.6618]
[1751277350300,2.00107837,150.1,150.06,2.00107837]
[1751277350500,2.00107837,150.08,150.05,6.16707884]
[1751277350697,2.00107837,150.08,150.04,6.16707884]
[1751277351204,2.00107837,150.08,150.05,6.16707884]
[1751277351497,2.00107837,150.08,150.07,6.6619]
[1751277355704,2.00107837,150.09,150.08,6.6615]
[1751277355902,2.00107837,150.1,150.07,2.00107837]
[1751277356103,2.00107837,150.1,150.07,6.16707884]
[1751277356402,34.36,150.11,150.07,6.16707884]
[1751277356403,36.36107837,150.11,150.1,6.6606]
[1751277357307,8.29789953,150.21,150.1,49.18815721]
[1751277357507,55.85913404,150.23,150.16,2.00107837]
[1751277357802,2.00107837,150.22,150.21,6.6557]
[1751277357995,2.00107837,150.22,150.18,2.00107837]
[1751277358400,2.00107837,150.19,150.17,8.47277884]
[1751277359305,2.00107837,150.19,150.17,2.3057]
[1751277359506,2.00107837,150.19,150.18,6.6571]
[1751277359905,3.12078605,150.21,150.17,2.3057]
[1751277361706,3.12078605,150.21,150.2,6.6562]
[1751277361906,3.12078605,150.22,150.2,6.6562]
[1751277363109,9.77638605,150.22,150.15,34.36]
[1751277364614,9.77638605,150.22,150.19,6.6563]
[1751277365111,6.6556,150.22,150.19,6.6563]
[1751277365311,9.77638605,150.22,150.19,6.6563]
[1751277367210,3.12078605,150.2,150.17,6.6572]
[1751277367714,3.12078605,150.18,150.17,6.6572]
[1751277369913,3.12078605,150.19,150.17,6.6572]
[1751277373117,3.12078605,150.19,150.13,36.5388]
[1751277373315,3.12078605,150.16,150.13,36.5388]
[1751277373517,3.12078605,150.16,150.15,6.6581]
[1751277373914,34.34,150.2,150.13,36.5388]
[1751277374116,3.12078605,150.17,150.13,36.5388]
[1751277375617,3.12078605,150.17,150.15,6.6581]
[1751277376920,9.77828605,150.17,150.15,6.6581]
[1751277381224,3.12078605,150.17,150.14,6.6587]
[1751277381416,6.6581,150.16,150.14,6.6587]
[1751277381925,34.34,150.2,150.1,34.22]
[1751277381926,3.12078605,150.15,150.1,34.22]
[1751277382524,9.77948605,150.15,150.12,6.6595]
[1751277383416,9.77948605,150.15,150.13,6.6592]
[1751277383823,3.12078605,150.14,150.13,6.6592]
[1751277385327,6.6587,150.15,150.13,6.6592]
[1751277385527,3.12078605,150.14,150.13,6.6592]
[1751277387122,9.77888605,150.16,150.13,6.6592]
[1751277387919,6.6581,150.16,150.13,6.6592]
[1751277388125,9.77888605,150.16,150.13,6.6592]
[1751277388320,6.6585,150.15,150.13,6.6592]
[1751277395933,1.9988792,150.14,150.13,6.6592]
[1751277397638,1.15934304,150.19,150.14,6.6586]
[1751277397932,1.9988792,150.15,150.14,6.6586]
[1751277398328,1.9988792,150.15,150.11,1.9988792]
[1751277398536,1.9988792,150.14,150.13,6.6591]
[1751277398930,1.9988792,150.14,150.12,6.6595]
[1751277401638,1.9988792,150.13,150.12,6.6595]
[1751277405241,1.9988792,150.14,150.13,6.6591]
[1751277405638,1.15934304,150.19,150.11,1.9988792]
[1751277405840,34.34,150.2,150.15,6.6583]
[1751277406038,1.9988792,150.16,150.15,6.6583]
[1751277407142,1.9988792,150.19,150.15,1.9988792]
[1751277407338,1.9988792,150.19,150.15,8.16595804]
[1751277408442,1.9988792,150.19,150.17,6.6572]
[1751277409044,1.9988792,150.19,150.18,6.6571]
[1751277409244,1.9988792,150.19,150.15,8.16595804]
[1751277409844,37.46117583,150.2,150.17,6.6573]
[1751277410044,37.46117583,150.2,150.15,6.16707884]
[1751277410345,37.46117583,150.2,150.17,6.6573]
[1751277411848,34.34,150.2,150.17,6.6573]
[1751277412144,37.46117583,150.2,150.17,6.6573]
[1751277412746,44.11737583,150.2,150.16,6.6578]
[1751277413046,44.11737583,150.2,150.15,6.16707884]
[1751277413251,37.46117583,150.2,150.17,6.6574]
[1751277415051,44.11747583,150.2,150.17,6.6574]
[1751277416553,37.46117583,150.2,150.17,6.6574]
[1751277419260,44.11737583,150.2,150.17,6.6574]
[1751277421157,6.6567,150.19,150.15,6.16707884]
[1751277421461,3.12117583,150.18,150.14,34.1]
[1751277422356,3.12117583,150.18,150.13,2.203]
[1751277422557,9.77847583,150.18,150.15,6.6581]
[1751277422765,6.6573,150.18,150.15,6.6581]
[1751277423061,3.12117583,150.17,150.15,6.6581]
[1751277424565,3.12117583,150.17,150.13,8.37007884]
[1751277424865,3.12117583,150.17,150.13,2.203]
[1751277425562,3.12117583,150.17,150.14,6.6585]
[1751277427763,9.77867583,150.17,150.14,6.6585]
[1751277427965,9.77867583,150.17,150.15,6.6584]
[1751277428167,3.12117583,150.17,150.15,6.6584]
[1751277431867,1.99850304,150.16,150.15,6.6584]
[1751277436767,35.95850304,150.16,150.08,8.26844891]
[1751277436974,1.99850304,150.09,150.08,6.22387237]
[1751277437272,1.99850304,150.09,150.08,12.88537237]
[1751277438477,1.99850304,150.1,150.08,12.88537237]
[1751277439272,1.99850304,150.1,150.08,6.6615]
[1751277439669,1.99850304,150.1,150.09,6.6611]
[1751277439969,9.7846271,150.12,150.06,46.83144891]
[1751277440266,9.7846271,150.12,150.08,6.6611]
[1751277440467,9.7846271,150.12,150.06,38.563]
[1751277440670,3.1247271,150.12,150.09,6.6609]
[1751277441273,9.7844271,150.12,150.09,6.6609]
[1751277441876,3.1247271,150.12,150.09,6.6609]
[1751277442570,3.1247271,150.12,150.06,38.563]
[1751277442765,3.1247271,150.16,150.09,3.1247271]
[1751277443172,3.1247271,150.16,150.13,6.659]
[1751277443570,3.1247271,150.16,150.1,33.96]
[1751277443770,3.1247271,150.16,150.14,6.6587]
[1751277445175,3.1247271,150.16,150.13,6.6591]
[1751277445576,9.7827271,150.16,150.13,6.6591]
[1751277446778,3.1247271,150.16,150.13,6.6591]
[1751277447280,9.7827271,150.16,150.13,6.6591]
[1751277449077,9.7829271,150.16,150.11,2.2953]
[1751277450079,9.7829271,150.16,150.12,6.6594]
[1751277450276,3.1247271,150.14,150.11,2.2953]
[1751277450573,3.1247271,150.12,150.1,33.96]
[1751277450774,9.7844271,150.12,150.07,33.96]
[1751277451277,9.7844271,150.12,150.09,6.6609]
[1751277451665,3.1247271,150.12,150.09,6.6609]
[1751277452273,3.1247271,150.12,150.1,6.6605]
[1751277456381,3.1247271,150.12,150.11,6.6602]
[1751277461389,3.1247271,150.12,150.1,6.6604]
[1751277461588,3.1247271,150.12,150.07,33.96]
[1751277462386,3.1247271,150.12,150.09,6.6607]
[1751277463087,3.1247271,150.12,150.1,6.6605]
[1751277463889,3.1247271,150.12,150.11,6.6602]
[1751277464187,3.1247271,150.12,150.07,33.96]
[1751277464690,3.1247271,150.12,150.1,6.6602]
[1751277464884,3.1247271,150.12,150.07,36.2671]
[1751277466386,9.7845271,150.12,150.09,6.6608]
[1751277468289,3.1247271,150.11,150.09,6.6608]
[1751277468681,9.7850271,150.11,150.08,6.6613]
[1751277469489,3.1247271,150.09,150.07,6.6617]
[1751277471385,9.7859271,150.09,150.06,11.3133]
[1751277471687,9.7859271,150.09,150.06,8.9306]
[1751277474790,3.1247271,150.07,150.03,42.14844891]
[1751277475496,3.1247271,150.07,150.05,6.6625]
[1751277477195,9.7867271,150.07,150.05,6.6625]
[1751277479901,2.00120237,150.06,150.05,6.6625]
[1751277492915,2.00120237,150.06,150.04,6.6631]
[1751277493112,2.00120237,150.05,150.02,4.6617]
[1751277493310,2.00120237,150.03,150.02,4.6617]
[1751277494213,2.00120237,150.03,150.02,11.3259]
[1751277495911,2.00120237,150.03,150.02,9.0052]
[1751277497918,2.00120237,150.03,149.99,33.88]
[1751277497919,8.66500237,150.03,149.99,33.88]
[1751277498117,2.00120237,150.0,149.99,33.88]
[1751277498617,2.00120237,150.0,149.99,40.5455]
[1751277499721,2.00120237,150.0,149.99,6.6655]
[1751277500919,6.6644,150.02,150.0,6.6649]
[1751277501119,2.00120237,150.01,150.0,6.6649]
[1751277503924,8.66580237,150.01,149.99,6.6654]
[1751277504123,2.00120237,150.0,149.99,6.6654]
[1751277504625,8.66630237,150.0,149.98,8.8872]
[1751277504814,2.00120237,149.99,149.98,8.8872]
[1751277505526,2.00120237,149.99,149.98,6.6658]
[1751277506118,2.00120237,149.99,149.96,2.1605]
[1751277506321,33.8,149.98,149.92,8.26844891]
[1751277506520,2.00120237,149.93,149.87,44.30274891]
[1751277506826,83.32292584,149.98,149.89,6.6697]
[1751277507122,2.00120237,149.91,149.87,36.0343]
[1751277507324,6.6677,149.95,149.9,6.6695]
[1751277507516,83.32292584,149.98,149.88,2.00120237]
[1751277507719,2.00120237,149.93,149.89,2.00120237]
[1751277507921,2.00120237,149.94,149.87,36.0343]
[1751277508121,6.6669,149.96,149.87,36.0343]
[1751277508326,2.00120237,149.94,149.9,2.00120237]
[1751277508522,2.00120237,149.94,149.91,6.6687]
[1751277508722,6.6665,149.97,149.91,2.284]
[1751277508921,2.00120237,149.94,149.91,2.284]
[1751277509116,83.32292584,149.98,149.92,6.6687]
[1751277509321,83.32292584,149.98,149.91,2.284]
[1751277509523,2.00120237,149.94,149.91,2.284]
[1751277509716,6.6666,149.97,149.92,6.6683]
[1751277510021,2.74002398,149.95,149.92,6.6683]
[1751277510217,2.74002398,149.95,149.91,2.284]
[1751277510218,2.74002398,149.97,149.91,37.624]
[1751277510828,2.74002398,149.97,149.93,6.6679]
[1751277511531,2.74002398,149.96,149.93,6.6679]
[1751277512229,2.74002398,149.97,149.94,6.6677]
[1751277515732,9.40652398,149.97,149.94,6.6677]
[1751277517034,2.74002398,149.97,149.91,39.8662]
[1751277517236,2.74002398,149.95,149.91,39.8662]
[1751277519533,6.668,149.94,149.91,46.535]
[1751277523432,35.34,149.97,149.91,39.8662]
[1751277523631,2.74002398,149.97,149.91,39.8662]
[1751277523840,2.74002398,149.97,149.91,42.60622398]
[1751277524034,2.74002398,149.99,149.91,42.60622398]
[1751277524337,2.74002398,149.97,149.91,39.8662]
[1751277524534,9.40672398,149.97,149.94,6.6675]
[1751277525537,6.6669,149.96,149.94,6.6675]
[1751277526135,9.40692398,149.96,149.94,6.6675]
[1751277526334,2.74002398,149.96,149.94,6.6675]
[1751277528641,9.40702398,149.96,149.94,6.6675]
[1751277528939,2.74002398,149.96,149.95,6.6674]
[1751277529940,6.6667,149.97,149.95,6.6674]
[1751277530140,9.40672398,149.97,149.95,6.6674]
[1751277536956,2.74002398,149.97,149.96,6.6668]
[1751277541560,2.74002398,149.98,149.92,2.3426]
[1751277543257,9.40612398,149.98,149.92,2.3426]
[1751277544460,9.40612398,149.98,149.96,6.6667]
[1751277547458,2.74002398,149.96,149.94,6.6676]
[1751277547867,35.34,150.0,149.92,2.3426]
[1751277548067,2.74002398,149.99,149.92,2.3426]
[1751277548775,9.40592398,149.99,149.96,6.6667]
[1751277549066,9.40592398,149.99,149.92,2.3426]
[1751277549272,9.40592398,149.99,149.96,6.6666]
[1751277550372,6.6659,149.99,149.96,6.6666]
[1751277550567,2.74002398,149.98,149.96,6.6666]
[1751277554074,6.6659,149.99,149.96,6.6666]
[1751277554368,2.74002398,149.98,149.97,6.6665]
[1751277555773,1.75294428,149.98,149.97,6.6665]
[1751277556274,6.6659,149.99,149.97,6.6665]
[1751277556476,1.75294428,149.98,149.97,6.6665]
[1751277558463,42.0053,150.0,149.98,6.666]
[1751277558668,1.75294428,149.99,149.98,6.666]
[1751277560375,1.75294428,149.99,149.96,6.6666]
[1751277560376,8.41884428,149.99,149.96,6.6666]
[1751277560680,1.75294428,149.97,149.96,6.6666]
[1751277563777,6.6658,149.99,149.97,6.6664]
[1751277563975,1.75294428,149.98,149.97,6.6664]
[1751277564575,1.75294428,149.98,149.96,6.6667]
[1751277564876,1.75294428,149.97,149.96,6.6667]
[1751277566473,6.6658,149.99,149.96,6.6667]
[1751277566675,1.75294428,149.97,149.96,6.6667]
[1751277570987,6.6658,149.99,149.96,6.6667]
[1751277571175,1.75294428,149.97,149.96,6.6667]
[1751277572579,1.75294428,149.99,149.95,7.99380085]
[1751277572782,1.75294428,149.98,149.96,6.24085657]
[1751277573083,1.75294428,149.98,149.97,6.6663]
[1751277577986,6.6665,149.97,149.96,6.24085657]
[1751277578189,1.75294428,149.97,149.93,6.24092544]
[1751277578492,8.42084428,149.94,149.93,6.24092544]
[1751277579286,8.42084428,149.94,149.91,17.17974891]
[1751277579483,1.75294428,149.92,149.91,17.17974891]
[1751277579986,2.74092219,149.93,149.91,17.17974891]
[1751277580393,6.6679,149.94,149.91,17.17974891]
[1751277580593,9.40882219,149.94,149.91,17.17974891]
[1751277581694,2.74092219,149.94,149.91,17.17974891]
[1751277582394,6.6692,149.91,149.9,8.26844891]
[1751277582598,12.84059953,149.97,149.85,37.08]
[1751277582890,2.74092219,149.91,149.86,8.26844891]
[1751277583098,6.6687,149.93,149.87,6.6707]
[1751277583389,2.74092219,149.92,149.87,6.6707]
[1751277583593,6.6687,149.93,149.88,6.6704]
[1751277583793,9.40962219,149.93,149.88,6.6704]
[1751277584391,6.6687,149.92,149.88,6.6704]
[1751277584593,2.74092219,149.93,149.88,6.6704]
[1751277584795,2.74092219,149.93,149.89,43.75]
[1751277585199,2.74092219,149.94,149.89,43.75]
[1751277585394,2.74092219,149.94,149.9,6.6695]
[1751277586201,9.40912219,149.94,149.9,6.6695]
[1751277586400,9.40912219,149.94,149.88,11.0093711]
[1751277586401,2.74092219,149.94,149.88,14.93854891]
[1751277586593,2.74092219,149.94,149.89,37.08]
[1751277586900,9.41012219,149.92,149.89,37.08]
[1751277587100,2.74092219,149.94,149.89,43.75]
[1751277587498,6.6685,149.93,149.89,43.75]
[1751277588498,6.669,149.92,149.88,14.93884891]
[1751277588703,6.669,149.92,149.89,37.08]
[1751277589002,9.40992219,149.92,149.89,37.08]
[1751277589203,6.6692,149.91,149.89,37.08]
[1751277590504,6.6696,149.9,149.89,37.08]
[1751277590905,2.74092219,149.92,149.89,37.08]
[1751277591101,6.6693,149.91,149.89,37.08]
[1751277591499,136.3,149.97,149.89,37.08]
[1751277591708,6.6691,149.92,149.89,37.08]
[1751277592005,2.74092219,149.93,149.89,37.08]
[1751277592206,6.6688,149.92,149.89,37.08]
[1751277592406,2.74092219,149.93,149.89,37.08]
[1751277593916,9.40992219,149.92,149.89,37.08]
[1751277595318,9.40992219,149.92,149.89,43.75]
[1751277596417,9.40992219,149.92,149.89,6.67]
[1751277597319,6.669,149.92,149.89,6.67]
[1751277598519,9.40942219,149.93,149.9,6.6696]
[1751277599819,6.6685,149.93,149.88,37.08]
[1751277600019,1.75438325,149.91,149.88,38.83438325]
[1751277600414,1.75438325,149.91,149.9,6.6693]
[1751277600621,1.75438325,149.91,149.88,37.08]
[1751277601016,1.75438325,149.91,149.9,6.6694]
[1751277601316,1.75438325,149.94,149.9,1.75438325]
[1751277601525,1.75438325,149.96,149.93,1.75438325]
[1751277601719,1.75438325,149.95,149.92,37.08]
[1751277602022,1.75438325,149.94,149.93,6.6681]
[1751277602823,6.6668,149.97,149.94,6.6675]
[1751277603012,1.75438325,149.95,149.92,38.83438325]
[1751277603215,1.75438325,149.95,149.94,6.6678]
[1751277603620,1.75438325,149.95,149.92,37.08]
[1751277603818,2.74012025,149.95,149.93,6.668]
[1751277604725,6.6671,149.96,149.93,6.668]
[1751277604925,2.74012025,149.95,149.93,6.668]
[1751277606230,9.40762025,149.95,149.93,6.668]
[1751277607727,2.74012025,149.95,149.88,8.26844891]
[1751277607923,34.6,149.99,149.88,37.08]
[1751277608125,34.6,149.99,149.87,4.5018]
[1751277608429,40.7959226,149.99,149.89,6.6698]
[1751277608630,40.7959226,149.99,149.87,4.5018]
[1751277608830,40.7959226,149.99,149.88,2.1823]
[1751277609027,2.74012025,149.95,149.89,38.64]
[1751277609226,2.74012025,149.94,149.89,38.64]
[1751277609832,34.6,149.99,149.89,38.64]
[1751277610227,2.74012025,149.94,149.89,38.64]
[1751277610830,6.668,149.94,149.91,6.6692]
[1751277611130,6.668,149.94,149.89,38.64]
[1751277611436,9.40812025,149.94,149.9,6.6693]
[1751277613726,6.668,149.94,149.9,6.6693]
[1751277614130,9.40812025,149.94,149.9,6.6693]
[1751277615337,6.668,149.94,149.9,6.6693]
[1751277615631,2.74012025,149.93,149.9,6.6693]
[1751277616234,6.668,149.94,149.9,6.6693]
[1751277616437,6.6683,149.93,149.9,6.6693]
[1751277616630,2.74012025,149.94,149.89,38.64]
[1751277616933,2.74012025,149.94,149.91,6.6691]
[1751277617734,9.40832025,149.94,149.9,6.6694]
[1751277618035,2.74012025,149.94,149.9,6.6694]
[1751277618231,2.74012025,149.93,149.89,38.64]
[1751277618627,40.7959226,149.99,149.89,38.64]
[1751277618832,2.74012025,149.95,149.89,38.64]
[1751277619034,2.74012025,149.95,149.92,6.6684]
[1751277619330,9.40752025,149.96,149.92,6.6684]
[1751277619535,6.6674,149.95,149.92,6.6684]
[1751277619731,2.74012025,149.96,149.89,38.64]
[1751277620237,9.40742025,149.96,149.89,38.64]
[1751277620538,9.40742025,149.96,149.92,6.6684]
[1751277620734,6.6674,149.95,149.92,6.6684]
[1751277621136,9.40752025,149.95,149.92,6.6684]
[1751277621934,6.6674,149.95,149.92,6.6684]
[1751277622137,9.40752025,149.95,149.92,6.6684]
[1751277622835,2.74012025,149.95,149.89,46.90844891]
[1751277623235,2.74012025,149.96,149.89,46.90844891]
[1751277623434,9.40732025,149.96,149.9,2.74012025]
[1751277623629,2.74012025,149.96,149.89,49.64856916]
[1751277623832,2.74012025,149.94,149.91,6.6691]
[1751277624541,2.74012025,149.92,149.89,38.64]
[1751277624838,2.74012025,149.92,149.89,45.3098]
[1751277625232,6.6687,149.93,149.89,45.3098]
[1751277625543,9.40882025,149.93,149.89,45.3098]
[1751277625936,9.40882025,149.93,149.9,6.6696]
[1751277627640,6.6687,149.93,149.9,6.6696]
[1751277627939,9.40882025,149.93,149.9,6.6696]
[1751277629840,1.7543015,149.91,149.9,6.6696]
[1751277630739,46.01704502,149.98,149.9,1.7543015]
[1751277631039,1.7543015,149.93,149.89,48.66275041]
[1751277631734,2.74044592,149.95,149.92,6.6687]
[1751277632233,2.74044592,149.94,149.92,6.6687]
[1751277632934,9.40814592,149.95,149.92,6.6687]
[1751277637042,39.82112242,149.98,149.93,6.6682]
[1751277637043,9.40764592,149.96,149.93,6.6682]
[1751277638842,6.6674,149.95,149.93,6.6682]
[1751277639038,2.74044592,149.96,149.92,6.23724015]
[1751277639341,6.6673,149.96,149.92,6.23724015]
[1751277639534,2.74044592,149.96,149.92,6.23724015]
[1751277639732,2.74044592,149.96,149.93,6.6681]
[1751277640042,6.6674,149.95,149.93,6.6681]
[1751277641043,9.40764592,149.96,149.93,6.6681]
[1751277644449,6.6672,149.96,149.93,6.6681]
[1751277644746,9.40764592,149.96,149.93,6.6681]
[1751277646244,6.6674,149.95,149.93,6.6681]
[1751277648057,6.6672,149.96,149.94,6.6677]
[1751277648354,2.74044592,149.96,149.92,6.23724015]
[1751277648653,6.6676,149.95,149.91,6.23724015]
[1751277648854,6.6676,149.95,149.92,6.23724015]
[1751277649554,6.6676,149.95,149.93,6.6681]
[1751277651355,6.6676,149.95,149.92,12.90564015]
[1751277651954,6.6676,149.95,149.93,6.6682]
[1751277653758,1.75370679,149.94,149.93,6.6682]
[1751277654258,6.6676,149.95,149.93,6.6682]
[1751277654564,1.75370679,149.94,149.93,6.6682]
[1751277655061,1.75370679,149.94,149.92,12.90574015]
[1751277655356,1.75370679,149.93,149.92,12.90574015]
[1751277655758,1.75370679,149.93,149.92,6.6685]
[1751277658056,6.6676,149.95,149.92,6.6685]
[1751277658261,1.75370679,149.93,149.92,6.6685]
[1751277658559,1.75370679,149.96,149.92,1.75370679]
[1751277658856,1.75370679,149.95,149.93,6.24067113]
[1751277659459,1.75370679,149.95,149.94,6.6676]
[1751277660662,1.75370679,149.96,149.95,6.6674]
[1751277660862,1.75370679,149.96,149.94,6.24067113]
[1751277661056,1.75370679,149.96,149.94,12.90837113]
[1751277661257,1.75370679,149.95,149.94,12.90837113]
[1751277661461,1.75370679,149.96,149.94,12.90837113]
[1751277661962,6.6667,149.97,149.94,12.90837113]
[1751277662162,1.75370679,149.96,149.94,12.90837113]
[1751277663062,1.75370679,149.95,149.94,6.24067113]
[1751277663362,137.82,149.98,149.94,6.24067113]
[1751277663558,1.75370679,149.96,149.93,6.24067113]
[1751277663866,1.75370679,149.95,149.93,6.24067113]
[1751277664663,1.75370679,149.95,149.93,12.90897113]
[1751277664863,137.78,149.97,149.92,6.24067113]
[1751277665063,6.6674,149.96,149.92,12.90897113]
[1751277665265,1.75370679,149.94,149.92,12.90897113]
[1751277665463,1.75370679,149.93,149.92,6.24067113]
[1751277665658,1.75370679,149.94,149.92,6.24067113]
[1751277666166,8.42150679,149.94,149.92,6.24067113]
[1751277666559,1.75370679,149.93,149.9,6.24067113]
[1751277666864,1.75370679,149.92,149.9,6.24067113]
[1751277667360,1.75370679,149.92,149.9,12.91007113]
[1751277667762,6.6683,149.93,149.9,12.91007113]
[1751277667763,1.75370679,149.91,149.9,12.91007113]
[1751277667961,6.6683,149.93,149.9,12.91007113]
[1751277668156,1.75370679,149.91,149.9,12.91007113]
[1751277668763,1.75370679,149.91,149.9,6.24067113]
[1751277670658,1.75370679,149.91,149.9,12.91027113]
[1751277672867,6.6683,149.93,149.91,6.6691]
[1751277673165,1.75370679,149.92,149.91,6.6691]
[1751277677470,6.668,149.94,149.91,6.6691]
[1751277677662,1.75370679,149.92,149.91,6.6691]
[1751277677861,39.36,149.96,149.91,6.6691]
[1751277677862,1.75370679,149.95,149.91,1.75370679]
[1751277678063,1.75370679,149.95,149.92,1.75370679]
[1751277678265,1.75370679,149.94,149.93,6.668]
[1751277680168,38.34,149.99,149.91,7.99437792]
[1751277680369,1.75370679,149.97,149.93,1.75370679]
[1751277680666,1.75370679,149.97,149.93,7.99437792]
[1751277680859,1.75370679,149.97,149.95,6.6671]
[1751277681572,1.75370679,149.96,149.94,6.6676]
[1751277681767,1.75370679,149.95,149.94,6.6676]
[1751277682169,1.75370679,149.95,149.93,12.90877113]
[1751277682468,1.75370679,149.94,149.93,6.24067113]
[1751277682670,1.75370679,149.94,149.91,8.26844891]
[1751277682671,1.75370679,149.94,149.9,6.24067113]
[1751277682971,1.75370679,149.91,149.9,12.91027113]
[1751277683771,6.6683,149.93,149.91,6.669]
[1751277683974,1.75370679,149.92,149.91,6.669]
[1751277685566,1.75370679,149.92,149.89,6.24067113]
[1751277685770,1.75370679,149.91,149.89,6.24067113]
[1751277686177,1.75370679,149.91,149.9,6.6696]
[1751277686375,1.75370679,149.91,149.89,6.24067113]
[1751277686676,1.75370679,149.9,149.89,6.24067113]
[1751277687677,1.75370679,149.9,149.89,12.91027113]
[1751277689274,2.3794,149.97,149.88,48.49667792]
[1751277689474,1.75370679,149.96,149.92,7.99437792]
[1751277689677,38.34,149.99,149.92,6.24067113]
[1751277689876,1.75370679,149.95,149.93,6.6682]
[1751277690881,8.42130679,149.95,149.92,12.90917113]
[1751277691183,1.75370679,149.94,149.92,12.90917113]
[1751277691390,1.75370679,149.94,149.92,6.24067113]
[1751277691576,6.6676,149.95,149.93,6.6681]
[1751277694485,9.40711719,149.96,149.93,6.6681]
[1751277694686,6.6672,149.96,149.93,6.6681]
[1751277696676,9.40711719,149.96,149.93,6.6681]
[1751277696875,9.40711719,149.96,149.94,6.6677]